bitfinex-derivatives/quotes_BTCF0:USTF0_20250912
["timestamp","ask_amount","ask_price","bid_price","bid_amount"]
[1757663785482,2.01114444,115250.0,115240.0,0.0012]
[1757663785682,2.01214444,115250.0,115240.0,0.0022]
[1757663793593,2.01214444,115250.0,115240.0,0.002]
[1757663799094,0.0136,115240.0,115230.0,0.01809867]
[1757663799295,1.09889602,115240.0,115230.0,0.01789867]
[1757663799494,1.12064754,115240.0,115230.0,0.01789867]
[1757663799696,2.62064754,115240.0,115230.0,0.01789867]
[1757663800202,2.62164754,115240.0,115230.0,0.02089867]
[1757663800396,2.62264754,115240.0,115230.0,0.02109867]
[1757663800596,3.41048754,115240.0,115230.0,0.02109867]
[1757663800793,3.40948754,115240.0,115230.0,0.01809867]
[1757663801001,3.41048754,115240.0,115230.0,0.01909867]
[1757663803300,2.62264754,115240.0,115230.0,0.01909867]
[1757663803606,3.41048754,115240.0,115230.0,0.01909867]
[1757663807497,3.41048754,115240.0,115230.0,0.0012]
[1757663811105,2.62264754,115240.0,115230.0,0.0012]
[1757663811403,3.41048754,115240.0,115230.0,0.0012]
[1757663812505,2.62264754,115240.0,115230.0,0.0012]
[1757663812810,3.41048754,115240.0,115230.0,0.0012]
[1757663814613,2.62264754,115240.0,115230.0,0.0012]
[1757663814804,3.41044754,115240.0,115230.0,0.0012]
[1757663817113,2.62264754,115240.0,115230.0,0.0012]
[1757663817314,3.41044754,115240.0,115230.0,0.0012]
[1757663818021,2.62264754,115240.0,115230.0,0.0012]
[1757663818216,3.41044754,115240.0,115230.0,0.0012]
[1757663819117,0.03668,115220.0,115210.0,0.38326]
[1757663819307,1.28882534,115220.0,115210.0,0.38326]
[1757663819720,1.28882534,115220.0,115210.0,0.02246]
[1757663820107,1.53751602,115220.0,115210.0,0.02246]
[1757663820306,1.53751602,115220.0,115200.0,0.4388906]
[1757663820512,0.28537068,115210.0,115200.0,0.38326]
[1757663820707,0.59537068,115210.0,115200.0,0.63326]
[1757663820921,0.59537068,115210.0,115200.0,0.38326]
[1757663821215,0.60387281,115210.0,115200.0,0.38326]
[1757663822320,0.60487281,115210.0,115200.0,0.38626]
[1757663822617,0.48052747,115210.0,115200.0,0.38626]
[1757663823820,0.48152747,115210.0,115200.0,0.38626]
[1757663827216,0.48152747,115210.0,115160.0,0.25638279]
[1757663827417,0.01399,115190.0,115180.0,0.12434534]
[1757663827619,0.34399,115190.0,115180.0,0.14223074]
[1757663828825,0.49202534,115190.0,115180.0,0.14823074]
[1757663829121,0.49209711,115190.0,115180.0,0.14823074]
[1757663829516,0.36768,115190.0,115180.0,0.14823074]
[1757663830525,0.36868,115190.0,115180.0,0.14823074]
[1757663830725,0.36868,115190.0,115180.0,0.37192522]
[1757663831733,1.15648,115190.0,115180.0,0.37192522]
[1757663831933,1.15648,115190.0,115180.0,0.03265223]
[1757663832135,1.15648,115190.0,115180.0,0.37192522]
[1757663832323,1.15648,115190.0,115180.0,0.03265223]
[1757663833128,1.47077693,115190.0,115180.0,0.34694916]
[1757663833327,1.47077693,115190.0,115180.0,0.0238854]
[1757663833528,1.83157693,115190.0,115180.0,0.0238854]
[1757663833929,1.04377693,115190.0,115180.0,0.0238854]
[1757663834130,1.83153693,115190.0,115180.0,0.006]
[1757663834335,0.01399,115160.0,115150.0,0.6926452]
[1757663834537,1.41604693,115160.0,115150.0,0.6926452]
[1757663834735,1.41604693,115160.0,115150.0,0.67509693]
[1757663834933,1.41604693,115160.0,115150.0,0.76191693]
[1757663835128,1.41604693,115160.0,115150.0,0.67509693]
[1757663836136,1.41704693,115160.0,115150.0,0.68109693]
[1757663836636,1.4171187,115160.0,115150.0,0.68109693]
[1757663837142,1.41704693,115160.0,115150.0,0.68109693]
[1757663837341,1.41804693,115160.0,115150.0,0.68109693]
[1757663837540,1.41804693,115160.0,115150.0,0.68967312]
[1757663837842,1.10379,115160.0,115150.0,0.68967312]
[1757663838936,1.10379,115160.0,115150.0,0.32887312]
[1757663839243,1.10379,115160.0,115150.0,0.31587312]
[1757663840047,1.12648,115160.0,115150.0,0.31587312]
[1757663840744,1.44077693,115160.0,115150.0,0.31587312]
[1757663845144,1.12648,115160.0,115150.0,0.31587312]
[1757663845347,1.44077693,115160.0,115150.0,0.31587312]
[1757663849143,0.65297693,115160.0,115150.0,0.31587312]
[1757663849355,0.65297693,115160.0,115150.0,0.01457619]
[1757663849644,0.65297693,115160.0,115150.0,0.32887312]
[1757663850053,0.33868,115160.0,115150.0,0.32887312]
[1757663850345,0.65297693,115160.0,115150.0,0.32887312]
[1757663850543,0.65297693,115160.0,115150.0,0.01457619]
[1757663850746,0.33868,115160.0,115150.0,0.32887312]
[1757663850951,0.63028693,115160.0,115150.0,0.32887312]
[1757663851648,0.31599,115160.0,115150.0,0.32887312]
[1757663852548,0.34356,115160.0,115150.0,0.32887312]
[1757663852745,0.34363177,115160.0,115150.0,0.32887312]
[1757663852944,0.34363103,115160.0,115150.0,0.32887312]
[1757663853147,0.34362851,115160.0,115150.0,0.32887312]
[1757663853346,0.34363177,115160.0,115150.0,0.32887312]
[1757663853545,0.31606177,115160.0,115150.0,0.32887312]
[1757663853748,0.31599,115160.0,115150.0,0.32887312]
[1757663854651,0.31599,115160.0,115150.0,0.41569312]
[1757663855048,0.31599,115160.0,115150.0,0.10139619]
[1757663855240,0.34356,115160.0,115150.0,0.10139619]
[1757663855445,0.65785693,115160.0,115150.0,0.32887312]
[1757663855945,0.34356,115160.0,115150.0,0.32887312]
[1757663857247,0.34363177,115160.0,115150.0,0.32887312]
[1757663857453,0.34356,115160.0,115150.0,0.32887312]
[1757663857657,0.34356,115160.0,115150.0,0.68967312]
[1757663862055,0.31599,115160.0,115150.0,0.68967312]
[1757663863346,0.34362823,115160.0,115150.0,0.68967312]
[1757663863551,0.34363177,115160.0,115150.0,0.68967312]
[1757663863749,0.34356,115160.0,115150.0,0.68967312]
[1757663864152,0.31599,115160.0,115150.0,0.68967312]
[1757663864359,0.302,115160.0,115150.0,1.09079005]
[1757663864658,0.302,115160.0,115150.0,1.87859005]
[1757663865158,0.302,115160.0,115150.0,1.79177005]
[1757663865354,0.302,115160.0,115150.0,1.47747312]
[1757663866350,0.302,115160.0,115150.0,1.56429312]
[1757663869154,0.31527,115160.0,115150.0,1.56429312]
[1757663869358,0.31527,115160.0,115150.0,1.47747312]
[1757663869659,0.65713693,115160.0,115150.0,0.01457619]
[1757663869861,0.65713693,115160.0,115150.0,0.32887312]
[1757663870155,0.65720121,115160.0,115150.0,0.32887312]
[1757663870357,0.65713693,115160.0,115150.0,0.32887312]
[1757663870760,0.65713693,115160.0,115150.0,0.32487312]
[1757663871753,0.34284,115160.0,115150.0,0.32487312]
[1757663873857,0.34284,115160.0,115150.0,0.32487312]
[1757663874561,0.41128072,115160.0,115150.0,0.32487312]
[1757663876972,0.41128072,115160.0,115150.0,0.68567312]
[1757663877162,1.19900072,115160.0,115150.0,0.68567312]
[1757663878467,0.31527,115160.0,115150.0,0.77249312]
[1757663878763,1.10299,115160.0,115150.0,0.77249312]
[1757663880165,0.31527,115160.0,115150.0,0.77249312]
[1757663880367,1.10295,115160.0,115150.0,0.77249312]
[1757663881470,1.12976,115160.0,115150.0,0.37137619]
[1757663881671,0.34208,115160.0,115150.0,0.68567312]
[1757663881876,1.12976,115160.0,115150.0,0.68567312]
[1757663884169,0.34208,115160.0,115150.0,0.68567312]
[1757663884469,1.12976,115160.0,115150.0,0.68567312]
[1757663885164,1.12976,115160.0,115150.0,0.37137619]
[1757663885369,1.12976,115160.0,115150.0,0.68567312]
[1757663886263,1.12976,115160.0,115150.0,0.77249312]
[1757663888658,1.12976,115160.0,115150.0,0.68567312]
[1757663890164,1.12976,115160.0,115150.0,0.77249312]
[1757663890366,1.44405693,115160.0,115150.0,0.77249312]
[1757663890969,1.12976,115160.0,115150.0,0.77249312]
[1757663891172,1.44405693,115160.0,115150.0,0.77249312]
[1757663891372,1.12976,115160.0,115150.0,0.77249312]
[1757663892382,1.12976,115160.0,115150.0,0.77262584]
[1757663892876,1.12976,115160.0,115150.0,0.79763671]
[1757663893470,1.12983177,115160.0,115150.0,0.79763671]
[1757663893671,1.12976,115160.0,115150.0,0.79763671]
[1757663896271,1.12976,115160.0,115150.0,0.01057619]
[1757663896476,1.12976,115160.0,115150.0,0.43683671]
[1757663897571,1.12983177,115160.0,115150.0,0.43683671]
[1757663897764,1.12982407,115160.0,115150.0,0.43683671]
[1757663897965,1.12976,115160.0,115150.0,0.43683671]
[1757663901279,1.12968,115160.0,115150.0,0.43683671]
[1757663904986,1.12964,115160.0,115150.0,0.43683671]
[1757663905187,0.34208,115160.0,115150.0,0.43683671]
[1757663905381,1.12964,115160.0,115150.0,0.43683671]
[1757663905584,0.34208,115160.0,115150.0,0.43683671]
[1757663906179,1.12964,115160.0,115150.0,0.43683671]
[1757663908286,1.1296,115160.0,115150.0,0.43683671]
[1757663908987,1.12967177,115160.0,115150.0,0.43683671]
[1757663909183,1.12966457,115160.0,115150.0,0.43683671]
[1757663909387,1.12967177,115160.0,115150.0,0.43683671]
[1757663909584,1.1296,115160.0,115150.0,0.43683671]
[1757663914281,1.12967177,115160.0,115150.0,0.43683671]
[1757663914482,1.1296,115160.0,115150.0,0.43683671]
[1757663918285,1.1296,115160.0,115150.0,0.09739619]
[1757663918481,1.1296,115160.0,115150.0,0.43683671]
[1757663919892,1.12952,115160.0,115150.0,0.43683671]
[1757663925390,1.12952,115160.0,115150.0,0.09739619]
[1757663925591,1.12952,115160.0,115150.0,0.43683671]
[1757663927194,0.34208,115160.0,115150.0,0.43683671]
[1757663927395,1.12948,115160.0,115150.0,0.43683671]
[1757663933308,1.12955036,115160.0,115150.0,0.43683671]
[1757663933510,1.12948,115160.0,115150.0,0.43683671]
[1757663933706,1.1295437,115160.0,115150.0,0.43683671]
[1757663933907,1.12955177,115160.0,115150.0,0.43683671]
[1757663934102,1.12948,115160.0,115150.0,0.43683671]
[1757663934508,1.12948,115160.0,115150.0,0.09739619]
[1757663934814,1.12948,115160.0,115150.0,0.43683671]
[1757663935412,1.12944,115160.0,115150.0,0.43683671]
[1757663936416,1.1294,115160.0,115150.0,0.43683671]
[1757663942609,0.34208,115160.0,115150.0,0.43683671]
[1757663942815,1.12936,115160.0,115150.0,0.43683671]
[1757663943310,1.12942192,115160.0,115150.0,0.43683671]
[1757663943518,1.12942432,115160.0,115150.0,0.43683671]
[1757663943708,1.12936,115160.0,115150.0,0.43683671]
[1757663944820,1.12936,115160.0,115150.0,0.35001671]
[1757663948918,1.12936,115160.0,115150.0,0.01057619]
[1757663949125,1.12936,115160.0,115150.0,0.35001671]
[1757663950619,0.34208,115160.0,115150.0,0.35001671]
[1757663950820,1.12932,115160.0,115150.0,0.35001671]
[1757663951226,1.12932,115160.0,115150.0,0.01057619]
[1757663951527,1.12932,115160.0,115150.0,0.35001671]
[1757663952528,1.12932,115160.0,115150.0,0.35002642]
[1757663952724,1.44375772,115160.0,115150.0,0.32501391]
[1757663952926,1.44382753,115160.0,115150.0,0.32501391]
[1757663953117,1.44375772,115160.0,115150.0,0.32501391]
[1757663953322,1.44382949,115160.0,115150.0,0.32501391]
[1757663953618,1.44375772,115160.0,115150.0,0.32501391]
[1757663954424,1.44375772,115160.0,115150.0,0.01057619]
[1757663954631,1.44375772,115160.0,115150.0,0.32501391]
[1757663955631,1.46131758,115160.0,115150.0,0.32501391]
[1757663959232,1.46130498,115160.0,115150.0,0.32501391]
[1757663960131,1.46130498,115160.0,115150.0,0.01057619]
[1757663960434,1.44367772,115160.0,115150.0,0.32501391]
[1757663961625,1.44367772,115160.0,115150.0,0.01057619]
[1757663961936,1.44367772,115160.0,115150.0,0.32501391]
[1757663962422,1.44367772,115160.0,115150.0,0.01057619]
[1757663962621,1.44367772,115160.0,115150.0,0.32501391]
[1757663963036,1.12924,115160.0,115150.0,0.32501391]
[1757663963236,1.44367772,115160.0,115150.0,0.32501391]
[1757663968441,1.12924,115160.0,115150.0,0.32501391]
[1757663968643,1.44367772,115160.0,115150.0,0.32501391]
[1757663969341,1.44367772,115160.0,115150.0,0.01057619]
[1757663969542,1.44367772,115160.0,115150.0,0.32501391]
[1757663974147,0.34208,115160.0,115150.0,0.32501391]
[1757663974446,1.12916,115160.0,115150.0,0.32501391]
[1757663974638,1.44359772,115160.0,115150.0,0.32501391]
[1757663975641,1.44366044,115160.0,115150.0,0.32501391]
[1757663975841,1.44359772,115160.0,115150.0,0.32501391]
[1757663976343,1.44359772,115160.0,115150.0,0.01057619]
[1757663976549,1.44359772,115160.0,115150.0,0.32501391]
[1757663978139,0.34208,115160.0,115150.0,0.32501391]
[1757663978343,1.12916,115160.0,115150.0,0.32501391]
[1757663978644,1.44359772,115160.0,115150.0,0.32501391]
[1757663979046,1.12916,115160.0,115150.0,0.32501391]
[1757663979246,1.44359772,115160.0,115150.0,0.32501391]
[1757663980945,1.44366949,115160.0,115150.0,0.32501391]
[1757663981345,1.44359772,115160.0,115150.0,0.32501391]
[1757663984351,1.44359772,115160.0,115150.0,0.01057619]
[1757663984554,1.44359772,115160.0,115150.0,0.32501391]
[1757663985040,1.44366949,115160.0,115150.0,0.32501391]
[1757663985241,1.44359772,115160.0,115150.0,0.32501391]
[1757663986850,1.12916,115160.0,115150.0,0.32501391]
[1757663987051,1.44359772,115160.0,115150.0,0.32501391]
[1757663987955,1.44355772,115160.0,115150.0,0.32501391]
[1757663988950,1.44362949,115160.0,115150.0,0.32501391]
[1757663989153,1.44355772,115160.0,115150.0,0.32501391]
[1757663990256,1.12912,115160.0,115150.0,0.32501391]
[1757663992050,1.44355772,115160.0,115150.0,0.32501391]
[1757663992959,1.12912,115160.0,115150.0,0.32501391]
[1757663993257,1.44355772,115160.0,115150.0,0.32501391]
[1757663994458,1.44355772,115160.0,115150.0,0.01057619]
[1757663994663,1.44355772,115160.0,115150.0,0.32501391]
[1757663996258,1.44351772,115160.0,115150.0,0.32501391]
[1757663996759,0.65651772,115160.0,115150.0,0.32501391]
[1757663996956,0.65658949,115160.0,115150.0,0.32501391]
[1757663997155,0.34208,115160.0,115150.0,0.32501391]
[1757663997354,1.12904,115160.0,115150.0,0.32501391]
[1757663999058,0.34208,115160.0,115150.0,0.63945163]
[1757663999264,1.12904,115160.0,115150.0,1.25025163]
[1757663999764,1.13904,115160.0,115150.0,1.25025163]
[1757664000263,0.35208,115160.0,115150.0,0.62137619]
[1757664000464,0.31527,115160.0,115150.0,0.70819609]
[1757664001165,0.31527,115160.0,115150.0,0.6996199]
[1757664001367,0.31527,115160.0,115150.0,1.4865799]
[1757664001664,0.302,115160.0,115150.0,1.4865799]
[1757664002764,0.302,115160.0,115150.0,0.6996199]
[1757664002966,0.302,115160.0,115150.0,0.6128]
[1757664003866,0.302,115160.0,115150.0,1.39976]
[1757664004967,0.302,115160.0,115150.0,1.4865799]
[1757664004968,0.3888124,115160.0,115150.0,1.4865799]
[1757664005964,0.3888124,115160.0,115150.0,1.4865399]
[1757664008666,0.38888417,115160.0,115150.0,1.4865399]
[1757664008866,0.3888124,115160.0,115150.0,1.4865399]
[1757664009370,0.3888124,115160.0,115150.0,0.6996199]
[1757664009571,0.3888124,115160.0,115150.0,1.4864999]
[1757664011262,0.4039624,115160.0,115150.0,1.4864999]
[1757664012070,0.3888124,115160.0,115150.0,1.4864999]
[1757664012966,0.38888417,115160.0,115150.0,1.4864999]
[1757664013168,0.3888124,115160.0,115150.0,1.4864999]
[1757664016672,0.302,115160.0,115150.0,1.4864999]
[1757664017072,0.30207177,115160.0,115150.0,1.4864999]
[1757664017272,0.302,115160.0,115150.0,0.6996199]
[1757664017473,0.302,115160.0,115150.0,1.4867399]
[1757664018070,0.30207177,115160.0,115150.0,0.6996199]
[1757664018464,0.302,115160.0,115150.0,1.4867399]
[1757664018774,0.302,115160.0,115150.0,1.4868199]
[1757664019076,0.31715,115160.0,115150.0,1.4868199]
[1757664019275,0.31715,115160.0,115150.0,1.51129296]
[1757664019479,0.31715,115160.0,115150.0,2.18986094]
[1757664022572,0.31722177,115160.0,115150.0,2.18986094]
[1757664023178,0.31715,115160.0,115150.0,2.18986094]
[1757664025481,0.04,115160.0,115150.0,2.18986094]
[1757664025682,0.31,115160.0,115150.0,2.18986094]
[1757664027880,0.31007057,115160.0,115150.0,2.18986094]
[1757664028187,0.31,115160.0,115150.0,2.18986094]
[1757664030179,0.31,115160.0,115150.0,2.28986094]
[1757664035888,0.31006861,115160.0,115150.0,2.28986094]
[1757664036084,0.31,115160.0,115150.0,2.28986094]
[1757664036791,0.31139612,115170.0,115150.0,2.03986094]
[1757664036992,0.32379,115170.0,115160.0,0.80008399]
[1757664037187,0.62379,115170.0,115160.0,0.80008399]
[1757664037388,0.34399,115170.0,115160.0,0.88689509]
[1757664037987,0.34599,115170.0,115160.0,0.88689509]
[1757664039087,0.34599,115170.0,115160.0,0.88989509]
[1757664039585,0.34605575,115170.0,115160.0,0.88989509]
[1757664039788,0.34606177,115170.0,115160.0,0.88989509]
[1757664040184,0.34599,115170.0,115160.0,0.88989509]
[1757664040384,0.332,115170.0,115160.0,0.88989509]
[1757664042694,0.28379,115180.0,115160.0,0.88989509]
[1757664042894,0.29379,115180.0,115170.0,1.48688399]
[1757664043090,0.57379,115180.0,115170.0,1.57368789]
[1757664043897,0.57479,115180.0,115170.0,1.57368789]
[1757664044389,0.57579,115180.0,115170.0,1.57568789]
[1757664045695,0.57479,115180.0,115170.0,1.57568789]
[1757664045991,0.57579,115180.0,115170.0,1.57668789]
[1757664047596,0.30599,115180.0,115170.0,1.57668789]
[1757664053596,0.57579,115180.0,115170.0,1.57668789]
[1757664054593,0.5618,115180.0,115170.0,1.57668789]
[1757664059501,0.292,115180.0,115170.0,1.57668789]
[1757664061702,0.292,115180.0,115170.0,1.57656789]
[1757664063602,0.292,115180.0,115170.0,1.67656789]
[1757664066801,0.292,115180.0,115170.0,0.88988789]
[1757664067003,0.30651,115180.0,115170.0,1.67652789]
[1757664074620,0.30651,115180.0,115170.0,1.65142947]
[1757664078721,0.30651,115180.0,115170.0,2.16142947]
[1757664090434,0.292,115180.0,115170.0,2.16142947]
[1757664100043,0.28379,115190.0,115170.0,1.46159337]
[1757664100246,0.36966,115190.0,115180.0,0.86178507]
[1757664100447,0.59966,115190.0,115180.0,0.98178507]
[1757664101348,0.60066,115190.0,115180.0,0.98178507]
[1757664101550,0.60166,115190.0,115180.0,1.76934507]
[1757664101941,0.60066,115190.0,115180.0,1.76934507]
[1757664102149,0.60166,115190.0,115180.0,1.77034507]
[1757664103351,0.60166,115190.0,115180.0,1.75034507]
[1757664103548,0.60166,115190.0,115180.0,0.87698557]
[1757664103750,0.60166,115190.0,115180.0,1.66354557]
[1757664104249,0.60166,115190.0,115180.0,0.87698557]
[1757664104451,0.60166,115190.0,115180.0,1.66354557]
[1757664104953,0.60166,115190.0,115180.0,1.73258548]
[1757664107253,0.60166,115190.0,115180.0,0.94602548]
[1757664107453,0.60166,115190.0,115180.0,1.73258548]
[1757664112356,0.59166,115190.0,115180.0,1.73258548]
[1757664112554,0.60166,115190.0,115180.0,1.73258548]
[1757664115558,0.59166,115190.0,115180.0,1.73258548]
[1757664115860,0.60166,115190.0,115180.0,1.73258548]
[1757664116748,0.59166,115190.0,115180.0,1.73258548]
[1757664116954,0.60166,115190.0,115180.0,1.73258548]
[1757664117757,0.60166,115190.0,115180.0,0.94602548]
[1757664118056,0.60166,115190.0,115180.0,1.73250548]
[1757664118664,0.59166,115190.0,115180.0,1.73250548]
[1757664118959,0.60166,115190.0,115180.0,1.73250548]
[1757664119368,0.59166,115190.0,115180.0,1.73250548]
[1757664119664,0.60166,115190.0,115180.0,1.73250548]
[1757664120361,0.60166,115190.0,115180.0,0.94602548]
[1757664120662,0.60166,115190.0,115180.0,1.73250548]
[1757664121063,0.60166,115190.0,115180.0,1.63250548]
[1757664122863,0.60166,115190.0,115180.0,1.31831991]
[1757664123063,0.60166,115190.0,115180.0,1.63250548]
[1757664124263,0.59166,115190.0,115180.0,1.63250548]
[1757664124463,0.60166,115190.0,115180.0,1.63250548]
[1757664127364,0.60166,115190.0,115180.0,1.53250548]
[1757664127567,0.60166,115190.0,115180.0,1.53246548]
[1757664131371,0.60166,115190.0,115180.0,0.74602548]
[1757664131565,0.60166,115190.0,115180.0,1.53246548]
[1757664132769,0.61901645,115190.0,115180.0,0.74602548]
[1757664132964,0.61901645,115190.0,115180.0,0.38522548]
[1757664133158,0.61901645,115190.0,115180.0,1.17166548]
[1757664133871,0.86901645,115190.0,115180.0,1.17166548]
[1757664135065,0.86901645,115190.0,115180.0,0.38522548]
[1757664136273,0.86901645,115190.0,115180.0,0.07103991]
[1757664136477,2.01621645,115190.0,115180.0,0.002]
[1757664137869,2.01621645,115190.0,115180.0,0.34134368]
[1757664139578,1.74641645,115190.0,115180.0,0.34134368]
[1757664139772,1.74645645,115190.0,115180.0,0.34134368]
[1757664143981,1.74645645,115190.0,115180.0,0.002]
[1757664144183,1.74649645,115190.0,115180.0,0.34134368]
[1757664145678,0.96001645,115190.0,115180.0,0.34134368]
[1757664145878,1.74649645,115190.0,115180.0,0.34134368]
[1757664146176,0.96001645,115190.0,115180.0,0.34134368]
[1757664146675,1.74649645,115190.0,115180.0,0.34134368]
[1757664148983,0.96001645,115190.0,115180.0,0.34134368]
[1757664149183,1.74649645,115190.0,115180.0,0.34134368]
[1757664149584,0.96001645,115190.0,115180.0,0.34134368]
[1757664149783,1.74649645,115190.0,115180.0,0.34134368]
[1757664159296,1.49649645,115190.0,115180.0,0.34134368]
[1757664160695,0.71001645,115190.0,115180.0,0.34134368]
[1757664160896,1.49649645,115190.0,115180.0,0.34134368]
[1757664163297,0.71001645,115190.0,115180.0,0.34134368]
[1757664163498,1.49649645,115190.0,115180.0,0.34134368]
[1757664164499,0.71001645,115190.0,115180.0,0.34134368]
[1757664164800,1.49649645,115190.0,115180.0,0.34134368]
[1757664164997,1.49649645,115190.0,115180.0,0.002]
[1757664165300,1.49649645,115190.0,115180.0,0.34134368]
[1757664166812,1.49649645,115190.0,115180.0,0.002]
[1757664167112,1.49649645,115190.0,115180.0,0.34134368]
[1757664167914,1.49649645,115190.0,115180.0,0.002]
[1757664168312,1.49649645,115190.0,115180.0,0.34134368]
[1757664169409,1.49649645,115190.0,115180.0,0.002]
[1757664169606,1.49649645,115190.0,115180.0,0.34134368]
[1757664169804,1.49649645,115190.0,115180.0,0.002]
[1757664170510,1.49649645,115190.0,115180.0,0.34134368]
[1757664171408,1.47914,115190.0,115180.0,0.34134368]
[1757664172210,1.47914,115190.0,115180.0,0.002]
[1757664172409,1.47914,115190.0,115180.0,0.34134368]
[1757664172619,1.49626406,115190.0,115180.0,0.34134368]
[1757664174821,1.49680932,115190.0,115180.0,0.34134368]
[1757664175021,1.47914,115190.0,115180.0,0.34134368]
[1757664175819,1.49631848,115190.0,115180.0,0.34134368]
[1757664176720,1.49631848,115190.0,115180.0,0.002]
[1757664176922,1.49631848,115190.0,115180.0,0.34134368]
[1757664177523,1.49631848,115190.0,115180.0,0.002]
[1757664177712,1.49631848,115190.0,115180.0,0.34134368]
[1757664177916,1.49651848,115190.0,115180.0,0.34134368]
[1757664178525,0.70983848,115190.0,115180.0,0.34134368]
[1757664178720,1.49647848,115190.0,115180.0,0.002]
[1757664178919,1.49647848,115190.0,115180.0,0.34134368]
[1757664180933,1.49647848,115190.0,115180.0,0.002]
[1757664181129,1.49647848,115190.0,115180.0,0.34134368]
[1757664184532,1.49651848,115190.0,115180.0,0.34134368]
[1757664186033,1.49651848,115190.0,115180.0,0.002]
[1757664186334,1.49651848,115190.0,115180.0,0.34134368]
[1757664188336,1.49651848,115190.0,115180.0,0.002]
[1757664188536,1.49651848,115190.0,115180.0,0.34134368]
[1757664191433,0.70987848,115190.0,115180.0,0.34134368]
[1757664191940,1.49675848,115190.0,115180.0,0.34134368]
[1757664193941,1.49675848,115190.0,115180.0,0.002]
[1757664194143,1.49675848,115190.0,115180.0,0.34134368]
[1757664197548,1.49675848,115190.0,115180.0,0.002]
[1757664197843,1.49675848,115190.0,115180.0,0.34134368]
[1757664198145,1.49675848,115190.0,115180.0,0.002]
[1757664198444,1.49675848,115190.0,115180.0,0.34130334]
[1757664198743,1.49675848,115190.0,115180.0,0.002]
[1757664198944,1.49675848,115190.0,115180.0,0.31630245]
[1757664199345,1.49675848,115190.0,115180.0,0.002]
[1757664199739,1.49675848,115190.0,115180.0,0.31630245]
[1757664200447,1.49675848,115190.0,115180.0,0.002]
[1757664200746,1.49675848,115190.0,115180.0,0.32498245]
[1757664201945,1.49675848,115190.0,115180.0,0.01068]
[1757664202141,1.49675848,115190.0,115180.0,0.32498245]
[1757664206850,1.13595848,115190.0,115180.0,0.32498245]
[1757664207150,1.49675848,115190.0,115180.0,0.32498245]
[1757664209256,1.49675848,115190.0,115180.0,0.01068]
[1757664209555,1.81106093,115190.0,115180.0,0.32498245]
[1757664209748,1.49675848,115190.0,115180.0,0.32498245]
[1757664211361,1.81106093,115190.0,115180.0,0.01068]
[1757664211554,1.81106093,115190.0,115180.0,0.32498245]
[1757664211754,1.49675848,115190.0,115180.0,0.32498245]
[1757664212058,1.49675848,115190.0,115180.0,0.01068]
[1757664212356,1.49675848,115190.0,115180.0,0.32498245]
[1757664214357,1.49675848,115190.0,115180.0,0.01068]
[1757664214656,1.49675848,115190.0,115180.0,0.32498245]
[1757664214955,0.70987848,115190.0,115180.0,0.32498245]
[1757664215161,1.49635848,115190.0,115180.0,0.32498245]
[1757664215756,0.70987848,115190.0,115180.0,0.32498245]
[1757664215956,1.49635848,115190.0,115180.0,0.01068]
[1757664216255,1.49635848,115190.0,115180.0,0.32498245]
[1757664218056,1.49635848,115190.0,115180.0,0.01068]
[1757664218257,1.49635848,115190.0,115180.0,0.32498245]
[1757664218860,1.49635848,115190.0,115180.0,0.01068]
[1757664219159,1.49635848,115190.0,115180.0,0.32498245]
[1757664220160,1.49635848,115190.0,115180.0,0.01068]
[1757664220460,1.49635848,115190.0,115180.0,0.32498245]
[1757664224559,1.49635848,115190.0,115180.0,0.01068]
[1757664224760,1.49635848,115190.0,115180.0,0.32498245]
[1757664225164,1.49635848,115190.0,115180.0,0.01068]
[1757664225362,1.49635848,115190.0,115180.0,0.32498245]
[1757664225761,1.81066093,115190.0,115180.0,0.32498245]
[1757664226061,1.80981093,115190.0,115180.0,0.32498245]
[1757664230464,0.01,115160.0,115150.0,0.38527306]
[1757664230657,1.0422,115160.0,115150.0,0.33877551]
[1757664230963,1.05932857,115160.0,115150.0,0.33877551]
[1757664231465,1.46464857,115160.0,115150.0,0.33877551]
[1757664231661,1.46564857,115160.0,115150.0,0.02947306]
[1757664231861,1.46564857,115160.0,115150.0,0.34377551]
[1757664232060,1.46664857,115160.0,115150.0,0.34477551]
[1757664234559,1.73644857,115160.0,115150.0,0.34477551]
[1757664238969,0.94972857,115160.0,115150.0,0.34477551]
[1757664239173,1.73628857,115160.0,115150.0,0.34477551]
[1757664241171,2.05059102,115160.0,115150.0,0.32030245]
[1757664241368,1.78079102,115160.0,115150.0,0.32030245]
[1757664241568,1.46648857,115160.0,115150.0,0.32030245]
[1757664241870,1.78079102,115160.0,115150.0,0.32030245]
[1757664242972,1.46648857,115160.0,115150.0,0.32030245]
[1757664243170,1.78079102,115160.0,115150.0,0.32030245]
[1757664243676,1.78079102,115160.0,115150.0,0.006]
[1757664243864,1.78079102,115160.0,115150.0,0.32030245]
[1757664244068,1.78079102,115160.0,115150.0,0.006]
[1757664244271,1.78079102,115160.0,115150.0,0.32030245]
[1757664244778,1.77879102,115160.0,115130.0,0.08537342]
[1757664245080,1.46648857,115160.0,115150.0,0.31830245]
[1757664245375,2.14159102,115160.0,115150.0,0.31830245]
[1757664245575,2.14059102,115160.0,115150.0,0.31730245]
[1757664245774,1.04072857,115160.0,115150.0,0.31830245]
[1757664245980,1.82632857,115160.0,115150.0,0.31530245]
[1757664246173,2.14163102,115160.0,115150.0,0.31530245]
[1757664247373,2.14163102,115160.0,115150.0,0.001]
[1757664247572,2.14063102,115160.0,115150.0,0.31530245]
[1757664247773,2.14163102,115160.0,115150.0,0.31730245]
[1757664248277,1.82732857,115160.0,115150.0,0.31730245]
[1757664248480,2.14163102,115160.0,115150.0,0.31730245]
[1757664250081,1.35503102,115160.0,115150.0,0.31730245]
[1757664250378,2.14167102,115160.0,115150.0,0.003]
[1757664250579,2.14167102,115160.0,115150.0,0.31730245]
[1757664251680,2.14167102,115160.0,115150.0,0.003]
[1757664251875,1.04072857,115160.0,115150.0,0.31730245]
[1757664252076,1.35503102,115160.0,115150.0,0.31730245]
[1757664252275,2.14191102,115160.0,115150.0,0.31730245]
[1757664252681,1.82760857,115160.0,115150.0,0.31730245]
[1757664253178,2.14191102,115160.0,115150.0,0.31730245]
[1757664253580,1.82760857,115160.0,115150.0,0.31730245]
[1757664253781,2.14191102,115160.0,115150.0,0.31730245]
[1757664254883,1.82760857,115160.0,115150.0,0.31730245]
[1757664255284,2.14191102,115160.0,115150.0,0.31730245]
[1757664256783,2.14208547,115160.0,115150.0,0.3174769]
[1757664257784,2.14208896,115160.0,115150.0,0.31748039]
[1757664258180,1.82760857,115160.0,115150.0,0.31748039]